fUST/lending_fUST_20250726
["ID","MTS","AMOUNT","RATE_DAILY","PERIOD"]
[375098530,1753527034966,-460.0,0.00019178,2]
[375098531,1753527035098,-460.0,0.00019178,2]
[375098532,1753527035108,-460.0,0.00019178,2]
[375098533,1753527035117,-460.0,0.00019178,2]
[375098534,1753527035127,-460.0,0.00019178,2]
[375098535,1753527035137,-460.0,0.00019178,2]
[375098536,1753527035146,-460.0,0.00019178,2]
[375098537,1753527035156,-460.0,0.00019178,2]
[375098538,1753527035165,-460.0,0.00019178,2]
[375098539,1753527035175,-460.0,0.00019178,2]
[375098540,1753527035184,-460.0,0.00019178,2]
[375098541,1753527035194,-194.78426727,0.00019178,2]
[375098542,1753527035203,-460.0,0.00019178,2]
[375098543,1753527035215,-460.0,0.00019178,2]
[375098544,1753527035224,-460.0,0.00019178,2]
[375098545,1753527035234,-460.0,0.00019178,2]
[375098546,1753527035244,-579.61,0.00019178,2]
[375098547,1753527035253,-460.0,0.00019178,2]
[375098548,1753527035263,-460.0,0.00019178,2]
[375098549,1753527035272,-460.0,0.00019178,2]
[375098550,1753527035282,-468.1138545,0.00019178,2]
[375098551,1753527035291,-460.0,0.00019178,2]
[375098552,1753527035301,-277.96263559,0.00019178,2]
[375098553,1753527035310,-460.0,0.00019178,2]
[375098554,1753527035319,-460.0,0.00019178,2]
[375098555,1753527035329,-460.0,0.00019178,2]
[375098556,1753527035341,-686.84,0.00019178,2]
[375098557,1753527035351,-460.0,0.00019178,2]
[375098558,1753527035360,-460.0,0.00019178,2]
[375098559,1753527035369,-460.0,0.00019178,2]
[375098560,1753527035378,-460.0,0.00019178,2]
[375098561,1753527035387,-460.0,0.00019178,2]
[375098562,1753527035397,-460.0,0.00019178,2]
[375098563,1753527035406,-460.0,0.00019178,2]
[375098564,1753527035416,-460.0,0.00019178,2]
[375098565,1753527035425,-447.59833778,0.00019178,2]
[375098566,1753527035434,-460.0,0.00019178,2]
[375098567,1753527035444,-462.1311868,0.00019178,2]
[375098568,1753527035453,-360.33149671,0.00019178,2]
[375098569,1753527035464,-460.0,0.00019178,2]
[375098570,1753527035474,-460.0,0.00019178,2]
[375098571,1753527035483,-460.0,0.00019178,2]
[375098572,1753527035494,-460.43543375,0.00019178,2]
[375098573,1753527035503,-460.68367356,0.00019178,2]
[375098574,1753527035514,-460.0,0.00019178,2]
[375098575,1753527035523,-583.0915925,0.00019178,2]
[375098576,1753527035533,-460.0,0.00019178,2]
[375098577,1753527035543,-460.0,0.00019178,2]
[375098578,1753527035552,-460.0,0.00019178,2]
[375098579,1753527035561,-460.0,0.00019178,2]
[375098580,1753527035571,-460.0,0.00019178,2]
[375098581,1753527035580,-460.0,0.00019178,2]
[375098582,1753527035590,-460.0,0.00019178,2]
[375098583,1753527035599,-464.88709639,0.00019178,2]
[375098584,1753527035608,-460.0,0.00019178,2]
[375098585,1753527035617,-460.0,0.00019178,2]
[375098586,1753527035627,-2511.02,0.00019178,2]
[375098587,1753527035636,-460.0,0.00019178,2]
[375098588,1753527035646,-460.0,0.00019178,2]
[375098589,1753527035656,-460.0,0.00019178,2]
[375098590,1753527035665,-460.0,0.00019178,2]
[375098591,1753527035675,-460.0,0.00019178,2]
[375098592,1753527035684,-460.0,0.00019178,2]
[375098593,1753527035694,-460.0,0.00019178,2]
[375098594,1753527035703,-461.81385601,0.00019178,2]
[375098595,1753527035713,-460.0,0.00019178,2]
[375098596,1753527035723,-500.0,0.00019178,2]
[375098597,1753527035733,-500.0,0.00019178,2]
[375098598,1753527035742,-500.0,0.00019178,2]
[375098599,1753527035752,-500.0,0.00019178,2]
[375098600,1753527035762,-460.0,0.00019178,2]
[375098601,1753527035771,-500.40777051,0.00019178,2]
[375098602,1753527035781,-460.0,0.00019178,2]
[375098603,1753527035790,-460.0,0.00019178,2]
[375098604,1753527035799,-460.0,0.00019178,2]
[375098605,1753527035808,-460.0,0.00019178,2]
[375098606,1753527035818,-460.0,0.00019178,2]
[375098607,1753527035827,-460.0,0.00019178,2]
[375098608,1753527035837,-460.0,0.00019178,2]
[375098609,1753527035846,-600.72,0.00019178,2]
[375098610,1753527035856,-460.0,0.00019178,2]
[375098611,1753527035865,-460.0,0.00019178,2]
[375098612,1753527035875,-460.0,0.00019178,2]
[375098613,1753527035885,-460.0,0.00019178,2]
[375098614,1753527035894,-460.0,0.00019178,2]
[375098615,1753527035903,-460.0,0.00019178,2]
[375098616,1753527035913,-227.08782409,0.00019178,2]
[375098617,1753527035923,-460.0,0.00019178,2]
[375098618,1753527035932,-460.0,0.00019178,2]
[375098619,1753527035941,-460.0,0.00019178,2]
[375098620,1753527035951,-460.0,0.00019178,2]
[375098621,1753527035961,-460.0,0.00019178,2]
[375098622,1753527035971,-460.0,0.00019178,2]
[375098623,1753527035981,-460.0,0.00019178,2]
[375098624,1753527035991,-460.0,0.00019178,2]
[375098625,1753527036000,-460.0,0.00019178,2]
[375098626,1753527036010,-460.0,0.00019178,2]
[375098627,1753527036019,-460.0,0.00019178,2]
[375098628,1753527036029,-2794.0,0.00019178,2]
[375098629,1753527036038,-460.0,0.00019178,2]
[375098630,1753527036048,-462.64437566,0.00019178,2]
[375098631,1753527036058,-460.0,0.00019178,2]
[375098632,1753527036068,-4094.52,0.00019178,2]
[375098633,1753527036077,-2323.02,0.00019178,2]
[375098634,1753527036087,-460.0,0.00019178,2]
[375098635,1753527036096,-669.94,0.00019178,2]
[375098636,1753527036105,-807.89,0.00019178,2]
[375098637,1753527036116,-460.0,0.00019178,2]
[375098638,1753527036126,-460.0,0.00019178,2]
[375098639,1753527036135,-460.0,0.00019178,2]
[375098640,1753527036145,-460.0,0.00019178,2]
[375098641,1753527036154,-460.0,0.00019178,2]
[375098642,1753527036163,-3242.85,0.00019178,2]
[375098643,1753527036173,-460.0,0.00019178,2]
[375098644,1753527036182,-507.95,0.00019178,2]
[375098645,1753527036191,-827.3,0.00019178,2]
[375098646,1753527036200,-460.0,0.00019178,2]
[375098647,1753527036210,-5874.56,0.00019178,2]
[375098648,1753527036221,-460.0,0.00019178,2]
[375098649,1753527036231,-460.0,0.00019178,2]
[375098650,1753527036240,-460.0,0.00019178,2]
[375098651,1753527036251,-460.0,0.00019178,2]
[375098652,1753527036260,-460.0,0.00019178,2]
[375098653,1753527036270,-588.82,0.00019178,2]
[375098654,1753527036280,-460.0,0.00019178,2]
[375098655,1753527036290,-460.0,0.00019178,2]
[375098656,1753527036299,-460.0,0.00019178,2]
[375098657,1753527036309,-596.14,0.00019178,2]
[375098658,1753527036320,-724.98,0.00019178,2]
[375098659,1753527036330,-787.86,0.00019178,2]
[375098660,1753527036342,-460.0,0.00019178,2]
[375098661,1753527036352,-460.0,0.00019178,2]
[375098662,1753527036362,-460.0,0.00019178,2]
[375098663,1753527036371,-1402.46,0.00019178,2]
[375098664,1753527036381,-460.0,0.00019178,2]
[375098665,1753527036390,-461.63962533,0.00019178,2]
[375098666,1753527036400,-460.0,0.00019178,2]
[375098667,1753527036409,-1667.4,0.00019178,2]
[375098668,1753527036418,-3413.29,0.00019178,2]
[375098669,1753527036428,-460.0,0.00019178,2]
[375098670,1753527036438,-460.0,0.00019178,2]
[375098671,1753527036448,-460.0,0.00019178,2]
[375098672,1753527036457,-460.0,0.00019178,2]
[375098673,1753527036467,-460.0,0.00019178,2]
[375098674,1753527036477,-460.0,0.00019178,2]
[375098675,1753527036486,-460.0,0.00019178,2]
[375098676,1753527036497,-460.0,0.00019178,2]
[375098677,1753527036507,-460.0,0.00019178,2]
[375098678,1753527036517,-2017.53,0.00019178,2]
[375098679,1753527036526,-460.0,0.00019178,2]
[375098680,1753527036536,-727.62,0.00019178,2]
[375098681,1753527036546,-500.0,0.00019178,2]
[375098682,1753527036556,-500.0,0.00019178,2]
[375098683,1753527036566,-500.0,0.00019178,2]
[375098684,1753527036577,-500.0,0.00019178,2]
[375098685,1753527036587,-500.0,0.00019178,2]
[375098686,1753527036598,-500.0,0.00019178,2]
[375098687,1753527036607,-471.24,0.00019178,2]
[375098688,1753527036616,-500.0,0.00019178,2]
[375098689,1753527036626,-500.0,0.00019178,2]
[375098690,1753527036635,-460.0,0.00019178,2]
[375098691,1753527036644,-460.0,0.00019178,2]
[375098692,1753527036655,-460.0,0.00019178,2]
[375098693,1753527036664,-460.0,0.00019178,2]
[375098694,1753527036674,-2856.97,0.00019178,2]
[375098695,1753527036685,-460.0,0.00019178,2]
[375098696,1753527036695,-460.0,0.00019178,2]
[375098697,1753527036704,-460.0,0.00019178,2]
[375098698,1753527036714,-909.06,0.00019178,2]
[375098699,1753527036723,-460.0,0.00019178,2]
[375098700,1753527036732,-460.0,0.00019178,2]
[375098701,1753527036742,-2520.78,0.00019178,2]
[375098702,1753527036751,-595.26246521,0.00019178,2]
[375098703,1753527036760,-461.43921183,0.00019178,2]
[375098704,1753527036771,-1925.48,0.00019178,2]
[375098705,1753527036781,-470.9,0.00019178,2]
[375098706,1753527036790,-460.0,0.00019178,2]
[375098707,1753527036802,-460.0,0.00019178,2]
[375098708,1753527036811,-460.0,0.00019178,2]
[375098709,1753527036821,-460.0,0.00019178,2]
[375098710,1753527036831,-460.0,0.00019178,2]
[375098711,1753527036842,-1046.86,0.00019178,2]
[375098712,1753527036853,-460.0,0.00019178,2]
[375098713,1753527036862,-460.0,0.00019178,2]
[375098714,1753527036872,-460.0,0.00019178,2]
[375098715,1753527036882,-460.0,0.00019178,2]
[375098716,1753527036891,-460.0,0.00019178,2]
[375098717,1753527036901,-460.0,0.00019178,2]
[375098718,1753527036910,-460.0,0.00019178,2]
[375098719,1753527036920,-460.0,0.00019178,2]
[375098720,1753527036929,-570.67,0.00019178,2]
[375098721,1753527036938,-460.0,0.00019178,2]
[375098722,1753527036948,-460.0,0.00019178,2]
[375098723,1753527036957,-460.0,0.00019178,2]
[375098724,1753527036967,-460.0,0.00019178,2]
[375098725,1753527036976,-460.0,0.00019178,2]
[375098726,1753527036986,-460.0,0.00019178,2]
[375098727,1753527036996,-460.0,0.00019178,2]
[375098728,1753527037005,-859.5,0.00019178,2]
[375098729,1753527037015,-2649.8,0.00019178,2]
[375098730,1753527037024,-540.45,0.00019178,2]
[375098731,1753527037033,-772.34,0.00019178,2]
[375098732,1753527037043,-460.0,0.00019178,2]
[375098733,1753527037053,-460.0,0.00019178,2]
[375098734,1753527037062,-1753.33,0.00019178,2]
[375098735,1753527037072,-460.0,0.00019178,2]
[375098736,1753527037082,-8471.01,0.00019178,2]
[375098737,1753527037092,-460.0,0.00019178,2]
[375098738,1753527037101,-460.0,0.00019178,2]
[375098739,1753527037110,-460.0,0.00019178,2]
[375098740,1753527037209,-460.0,0.00019178,2]
[375098741,1753527037219,-460.0,0.00019178,2]
[375098742,1753527037230,-460.0,0.00019178,2]
[375098743,1753527037239,-460.0,0.00019178,2]
[375098744,1753527037249,-460.0,0.00019178,2]
[375098745,1753527037258,-460.0,0.00019178,2]
[375098746,1753527037268,-814.3,0.00019178,2]
[375098747,1753527037278,-460.0,0.00019178,2]
[375098748,1753527037287,-465.48766108,0.00019178,2]
[375098749,1753527037297,-843.6,0.00019178,2]
[375098750,1753527037307,-460.0,0.00019178,2]
[375098751,1753527037316,-460.0,0.00019178,2]
[375098752,1753527037326,-460.0,0.00019178,2]
[375098753,1753527037338,-676.24,0.00019178,2]
[375098754,1753527037348,-460.0,0.00019178,2]
[375098755,1753527037357,-1443.02,0.00019178,2]
[375098756,1753527037367,-1286.08,0.00019178,2]
[375098757,1753527037376,-460.0,0.00019178,2]
[375098758,1753527037385,-904.24,0.00019178,2]
[375098759,1753527037396,-726.98,0.00019178,2]
[375098760,1753527037406,-523.82,0.00019178,2]
[375098761,1753527037415,-462.93351732,0.00019178,2]
[375098762,1753527037426,-460.98971703,0.00019178,2]
[375098763,1753527037435,-500.0,0.00019178,2]
[375098764,1753527037445,-666.0,0.00019178,2]
[375098765,1753527037454,-456.193663,0.00019178,2]
[375098766,1753527037464,-500.0,0.00019329,2]
[375098767,1753527037473,-500.0,0.00019329,2]
[375098768,1753527037483,-500.0,0.00019329,2]
[375098769,1753527037492,-5078.53249616,0.00019352,2]
[375098770,1753527037502,-500.0,0.00019451,2]
[375098771,1753527037511,-500.0,0.00019451,2]
[375098772,1753527037521,-500.0,0.00019451,2]
[375098773,1753527037531,-500.0,0.00019451,2]
[375098774,1753527037540,-460.0,0.00019452,2]
[375098775,1753527037549,-460.0,0.00019452,2]
[375098776,1753527037559,-479.11543137,0.00019452,2]
[375098777,1753527037568,-249.29026326,0.00019452,2]
[375098778,1753527037577,-333.36683095,0.00019452,2]
[375098779,1753527037587,-460.0,0.00019452,2]
[375098780,1753527037596,-460.0,0.00019452,2]
[375098781,1753527037605,-460.0,0.00019452,2]
[375098782,1753527037614,-460.0,0.00019452,2]
[375098783,1753527037624,-460.0,0.00019452,2]
[375098784,1753527037633,-460.0,0.00019452,2]
[375098785,1753527037642,-460.0,0.00019452,2]
[375098786,1753527037652,-460.0,0.00019452,2]
[375098787,1753527037662,-467.23,0.00019452,2]
[375098788,1753527037671,-531.37,0.00019452,2]
[375098789,1753527037681,-460.0,0.00019452,2]
[375098790,1753527037690,-460.0,0.00019452,2]
[375098791,1753527037700,-460.0,0.00019452,2]
[375098792,1753527037709,-460.0,0.00019452,2]
[375098793,1753527037719,-460.0,0.00019452,2]
[375098794,1753527037728,-460.0,0.00019452,2]
[375098795,1753527037738,-797.93,0.00019452,2]
[375098796,1753527037748,-684.19,0.00019452,2]
[375098797,1753527037757,-460.0,0.00019452,2]
[375098798,1753527037767,-460.0,0.00019452,2]
[375098799,1753527037776,-460.0,0.00019452,2]
[375098800,1753527037786,-460.0,0.00019452,2]
[375098801,1753527037796,-460.0,0.00019452,2]
[375098802,1753527037806,-354.62158023,0.00019452,2]
[375098803,1753527037815,-460.0,0.00019452,2]
[375098804,1753527037825,-460.0,0.00019452,2]
[375098805,1753527037835,-311.92558624,0.00019452,2]
[375098806,1753527037970,-500.0,0.00019172,2]
[375098807,1753527037980,-148.07441376,0.00019452,2]
[375098808,1753527037990,-579.61,0.00019452,2]
[375098809,1753527038000,-460.0,0.00019452,2]
[375098810,1753527038010,-470.19219384,0.00019452,2]
[375098811,1753527038020,-296.12812538,0.00019452,2]
[375098812,1753527038030,-460.0,0.00019452,2]
[375098813,1753527038039,-686.84,0.00019452,2]
[375098814,1753527038049,-460.0,0.00019452,2]
[375098815,1753527038059,-460.0,0.00019452,2]
[375098816,1753527038068,-460.0,0.00019452,2]
[375098817,1753527038078,-460.0,0.00019452,2]
[375098818,1753527038087,-460.0,0.00019452,2]
[375098819,1753527038097,-460.0,0.00019452,2]
[375098820,1753527038106,-2511.02,0.00019452,2]
[375098821,1753527038115,-460.0,0.00019452,2]
[375098823,1753527038125,-460.0,0.00019452,2]
[375098824,1753527038134,-460.0,0.00019452,2]
[375098825,1753527038143,-460.0,0.00019452,2]
[375098826,1753527038153,-600.72,0.00019452,2]
[375098827,1753527038163,-460.0,0.00019452,2]
[375098828,1753527038173,-460.0,0.00019452,2]
[375098829,1753527038182,-460.0,0.00019452,2]
[375098830,1753527038192,-393.33493957,0.00019452,2]
[375098832,1753527038298,-66.66506043,0.00019452,2]
[375098835,1753527038308,-460.0,0.00019452,2]
[375098837,1753527038317,-460.0,0.00019452,2]
[375098839,1753527038326,-460.0,0.00019452,2]
[375098841,1753527038340,-460.0,0.00019452,2]
[375098843,1753527038352,-460.0,0.00019452,2]
[375098845,1753527038361,-803.1443484,0.00019452,2]
[375098847,1753527038434,-500.0,0.00019172,2]
[375098849,1753527038443,-500.0,0.00019172,2]
[375098851,1753527038452,-500.0,0.00019172,2]
[375098853,1753527038460,-1990.8556516,0.00019452,2]
[375098854,1753527038469,-460.0,0.00019452,2]
[375098855,1753527038477,-460.0,0.00019452,2]
[375098856,1753527038485,-4094.52,0.00019452,2]
[375098857,1753527038494,-2323.02,0.00019452,2]
[375098858,1753527038503,-460.0,0.00019452,2]
[375098859,1753527038511,-669.94,0.00019452,2]
[375098860,1753527038520,-807.89,0.00019452,2]
[375098861,1753527038529,-460.0,0.00019452,2]
[375098862,1753527038537,-3242.85,0.00019452,2]
[375098863,1753527038545,-460.0,0.00019452,2]
[375098864,1753527038554,-507.95,0.00019452,2]
[375098865,1753527038563,-827.3,0.00019452,2]
[375098866,1753527038572,-5874.56,0.00019452,2]
[375098867,1753527038582,-460.0,0.00019452,2]
[375098868,1753527038590,-460.0,0.00019452,2]
[375098869,1753527038599,-424.61983791,0.00019452,2]
[375098870,1753527038607,-588.82,0.00019452,2]
[375098871,1753527038615,-460.0,0.00019452,2]
[375098872,1753527038624,-460.0,0.00019452,2]
[375098873,1753527038633,-596.14,0.00019452,2]
[375098874,1753527038643,-724.98,0.00019452,2]
[375098875,1753527038651,-787.86,0.00019452,2]
[375098876,1753527038660,-460.0,0.00019452,2]
[375098877,1753527038666,-1402.46,0.00019452,2]
[375098878,1753527038675,-1667.4,0.00019452,2]
[375098879,1753527038682,-3413.29,0.00019452,2]
[375098880,1753527038690,-460.0,0.00019452,2]
[375098881,1753527038698,-460.0,0.00019452,2]
[375098882,1753527038707,-460.0,0.00019452,2]
[375098883,1753527038716,-299.99209885,0.00019452,2]
[375098884,1753527038723,-460.0,0.00019452,2]
[375098885,1753527038730,-2017.53,0.00019452,2]
[375098886,1753527038736,-460.0,0.00019452,2]
[375098887,1753527038743,-727.62,0.00019452,2]
[375098888,1753527038753,-471.24,0.00019452,2]
[375098889,1753527038762,-460.0,0.00019452,2]
[375098890,1753527038771,-2856.97,0.00019452,2]
[375098891,1753527038781,-460.0,0.00019452,2]
[375098892,1753527038790,-500.63736179,0.00019452,2]
[375098893,1753527038799,-909.06,0.00019452,2]
[375098894,1753527038809,-2520.78,0.00019452,2]
[375098895,1753527038818,-1925.48,0.00019452,2]
[375098896,1753527038827,-470.9,0.00019452,2]
[375098897,1753527038837,-460.0,0.00019452,2]
[375098898,1753527038847,-460.0,0.00019452,2]
[375098899,1753527038856,-1046.86,0.00019452,2]
[375098900,1753527038865,-460.0,0.00019452,2]
[375098901,1753527038875,-460.0,0.00019452,2]
[375098902,1753527038885,-460.0,0.00019452,2]
[375098903,1753527038894,-570.67,0.00019452,2]
[375098904,1753527038904,-460.0,0.00019452,2]
[375098905,1753527038914,-859.5,0.00019452,2]
[375098906,1753527038923,-2649.8,0.00019452,2]
[375098907,1753527038933,-540.45,0.00019452,2]
[375098908,1753527038942,-772.34,0.00019452,2]
[375098909,1753527038951,-460.0,0.00019452,2]
[375098910,1753527039054,-1753.33,0.00019452,2]
[375098911,1753527039064,-460.0,0.00019452,2]
[375098912,1753527039074,-8471.01,0.00019452,2]
[375098913,1753527039083,-460.0,0.00019452,2]
[375098914,1753527039093,-425.74184596,0.00019452,2]
[375098915,1753527039102,-460.0,0.00019452,2]
[375098916,1753527039112,-460.0,0.00019452,2]
[375098917,1753527039121,-460.0,0.00019452,2]
[375098918,1753527039131,-814.3,0.00019452,2]
[375098919,1753527039139,-274.71771532,0.00019452,2]
[375098920,1753527039149,-843.6,0.00019452,2]
[375098921,1753527039158,-460.0,0.00019452,2]
[375098922,1753527039167,-676.24,0.00019452,2]
[375098923,1753527039176,-1443.02,0.00019452,2]
[375098924,1753527039186,-1286.08,0.00019452,2]
[375098925,1753527039195,-904.24,0.00019452,2]
[375098926,1753527039205,-726.98,0.00019452,2]
[375098927,1753527039216,-523.82,0.00019452,2]
[375098928,1753527039225,-338.81161482,0.00019489,2]
[375098929,1753527039234,-312.16666667,0.00019662,2]
[375098930,1753527039244,-215.9757969,0.00019662,2]
[375098931,1753527039254,-526.41699184,0.00019662,2]
[375098932,1753527039263,-160.0,0.00019662,2]
[375098933,1753527039272,-231.25662632,0.00019662,2]
[375098934,1753527039281,-160.0,0.00019662,2]
[375098935,1753527039291,-476.98041219,0.00019662,2]
[375098936,1753527039299,-160.0,0.00019662,2]
[375098937,1753527039308,-160.0,0.00019662,2]
[375098938,1753527039317,-12629.83479014,0.00019662,2]
[375098939,1753527039327,-160.0,0.00019662,2]
[375098940,1753527039337,-840.57612966,0.00019662,2]
[375098941,1753527039346,-160.0,0.00019662,2]
[375098942,1753527039355,-1000.0,0.00019721,2]
[375098943,1753527039365,-1000.0,0.00019721,2]
[375098944,1753527039374,-460.0,0.00019726,2]
[375098945,1753527039383,-384.11226119,0.00019726,2]
[375098946,1753527039392,-460.0,0.00019726,2]
[375098947,1753527039402,-460.0,0.00019726,2]
[375098948,1753527039411,-460.0,0.00019726,2]
[375098949,1753527039420,-467.23,0.00019726,2]
[375098950,1753527039430,-531.37,0.00019726,2]
[375098951,1753527039439,-460.0,0.00019726,2]
[375098952,1753527039449,-264.66,0.00019726,2]
[375098953,1753527039460,-460.0,0.00019726,2]
[375098954,1753527039469,-460.0,0.00019726,2]
[375098955,1753527039479,-460.0,0.00019726,2]
[375098956,1753527039487,-460.0,0.00019726,2]
[375098957,1753527039496,-797.93,0.00019726,2]
[375098958,1753527039506,-684.19,0.00019726,2]
[375098959,1753527039515,-460.0,0.00019726,2]
[375098960,1753527039524,-460.0,0.00019726,2]
[375098961,1753527039535,-460.0,0.00019726,2]
[375098962,1753527039544,-460.0,0.00019726,2]
[375098963,1753527039554,-460.0,0.00019726,2]
[375098964,1753527039563,-460.0,0.00019726,2]
[375098965,1753527039573,-460.0,0.00019726,2]
[375098966,1753527039582,-579.61,0.00019726,2]
[375098967,1753527039592,-460.0,0.00019726,2]
[375098968,1753527039601,-460.0,0.00019726,2]
[375098969,1753527039612,-686.84,0.00019726,2]
[375098970,1753527039622,-460.0,0.00019726,2]
[375098971,1753527039631,-460.0,0.00019726,2]
[375098972,1753527039640,-460.0,0.00019726,2]
[375098973,1753527039649,-460.0,0.00019726,2]
[375098974,1753527039659,-485.40378814,0.00019726,2]
[375098975,1753527039668,-460.0,0.00019726,2]
[375098976,1753527039678,-2511.02,0.00019726,2]
[375098977,1753527039687,-460.0,0.00019726,2]
[375098978,1753527039696,-460.0,0.00019726,2]
[375098979,1753527039706,-460.0,0.00019726,2]
[375098980,1753527039717,-460.0,0.00019726,2]
[375098981,1753527039726,-600.72,0.00019726,2]
[375098982,1753527039735,-154.60335011,0.00019726,2]
[375098983,1753527039745,-460.0,0.00019726,2]
[375098984,1753527039754,-460.0,0.00019726,2]
[375098985,1753527039763,-460.0,0.00019726,2]
[375098986,1753527039773,-460.0,0.00019726,2]
[375098987,1753527039782,-460.0,0.00019726,2]
[375098988,1753527039792,-460.0,0.00019726,2]
[375098989,1753527039801,-460.0,0.00019726,2]
[375098990,1753527039810,-2794.0,0.00019726,2]
[375098991,1753527039820,-460.0,0.00019726,2]
[375098992,1753527039829,-460.0,0.00019726,2]
[375098993,1753527039838,-4094.52,0.00019726,2]
[375098994,1753527039848,-2323.02,0.00019726,2]
[375098995,1753527039858,-460.0,0.00019726,2]
[375098996,1753527039868,-669.94,0.00019726,2]
[375098997,1753527039878,-807.89,0.00019726,2]
[375098998,1753527039887,-460.0,0.00019726,2]
[375098999,1753527039896,-3242.85,0.00019726,2]
[375099000,1753527039905,-460.0,0.00019726,2]
[375099001,1753527039915,-507.95,0.00019726,2]
[375099002,1753527039924,-827.3,0.00019726,2]
[375099003,1753527039933,-5874.56,0.00019726,2]
[375099004,1753527039943,-460.0,0.00019726,2]
[375099005,1753527039953,-460.0,0.00019726,2]
[375099006,1753527039964,-588.82,0.00019726,2]
[375099007,1753527039974,-460.0,0.00019726,2]
[375099008,1753527039984,-529.55642539,0.00019726,2]
[375099009,1753527039993,-596.14,0.00019726,2]
[375099010,1753527040003,-724.98,0.00019726,2]
[375099011,1753527040013,-787.86,0.00019726,2]
[375099012,1753527040023,-1402.46,0.00019726,2]
[375099013,1753527040032,-1667.4,0.00019726,2]
[375099014,1753527040043,-3413.29,0.00019726,2]
[375099015,1753527040052,-460.0,0.00019726,2]
[375099016,1753527040062,-435.451349,0.00019726,2]
[375099017,1753527040072,-460.0,0.00019726,2]
[375099018,1753527040081,-460.0,0.00019726,2]
[375099019,1753527040090,-2017.53,0.00019726,2]
[375099020,1753527040100,-460.0,0.00019726,2]
[375099021,1753527040109,-727.62,0.00019726,2]
[375099022,1753527040119,-471.24,0.00019726,2]
[375099023,1753527040128,-2856.97,0.00019726,2]
[375099024,1753527040138,-460.0,0.00019726,2]
[375099026,1753527040147,-2520.78,0.00019726,2]
[375099028,1753527040157,-1925.48,0.00019726,2]
[375099029,1753527040166,-470.9,0.00019726,2]
[375099030,1753527040175,-460.0,0.00019726,2]
[375099031,1753527040185,-460.0,0.00019726,2]
[375099032,1753527040194,-1046.86,0.00019726,2]
[375099033,1753527040203,-407.04041082,0.00019726,2]
[375099034,1753527040212,-460.0,0.00019726,2]
[375099035,1753527040222,-460.0,0.00019726,2]
[375099036,1753527040231,-570.67,0.00019726,2]
[375099037,1753527040241,-460.0,0.00019726,2]
[375099039,1753527040250,-859.5,0.00019726,2]
[375099041,1753527040260,-2649.8,0.00019726,2]
[375099043,1753527040269,-540.45,0.00019726,2]
[375099045,1753527040278,-772.34,0.00019726,2]
[375099046,1753527040287,-286.93799333,0.00019726,2]
[375099047,1753527040296,-1753.33,0.00019726,2]
[375099048,1753527040305,-460.0,0.00019726,2]